bitfinex-derivatives/quotes_SOLF0:USTF0_20260104
["timestamp","ask_amount","ask_price","bid_price","bid_amount"]
[1767569709683,1.06889506,134.34,134.22,104.3483]
[1767569709888,1.06889506,134.34,134.23,88.02]
[1767569710595,1.06889506,134.32,134.23,88.02]
[1767569711689,7.77249506,134.32,134.23,88.02]
[1767569712194,1.06889506,134.32,134.23,88.02]
[1767569713194,1.06889506,134.35,134.25,104.3295]
[1767569714695,1.06889506,134.35,134.26,6.7061]
[1767569715295,1.06889506,134.32,134.2,2.40065121]
[1767569715500,1.06889506,134.3,134.21,88.0]
[1767569716698,1.06889506,134.3,134.22,6.7081]
[1767569718896,1.06889506,134.3,134.21,88.0]
[1767569719491,1.06889506,134.3,134.21,94.7087]
[1767569720295,89.06889506,134.33,134.22,104.3524]
[1767569720498,89.06889506,134.33,134.21,192.357]
[1767569720499,1.06889506,134.33,134.24,104.3369]
[1767569720895,1.06889506,134.36,134.25,104.328]
[1767569721101,1.06889506,134.36,134.26,88.0]
[1767569722194,1.06889506,134.35,134.26,88.0]
[1767569723702,1.06889506,134.34,134.26,88.0]
[1767569724104,1.06889506,134.33,134.26,88.0]
[1767569724295,1.06889506,134.33,134.23,94.7075]
[1767569725102,7.77199506,134.33,134.24,6.7072]
[1767569725303,1.06889506,134.32,134.24,6.7072]
[1767569725695,1.06889506,134.31,134.23,88.0]
[1767569726295,1.06889506,134.31,134.23,94.7077]
[1767569727098,1.06889506,134.31,134.23,88.0]
[1767569727311,7.77289506,134.31,134.21,6.7085]
[1767569728007,7.77339506,134.3,134.21,6.7085]
[1767569728205,1.06889506,134.29,134.21,6.7085]
[1767569730206,1.06889506,134.28,134.2,88.0]
[1767569730408,1.01358708,134.3,134.2,88.0]
[1767569731603,1.01358708,134.33,134.2,192.3638]
[1767569732197,1.01358708,134.31,134.2,192.3638]
[1767569732596,1.01358708,134.31,134.23,6.7077]
[1767569733199,1.01358708,134.3,134.21,6.7085]
[1767569734209,1.01358708,134.28,134.19,94.7095]
[1767569734506,1.01358708,134.28,134.19,88.0]
[1767569735702,7.71908708,134.28,134.2,6.7093]
[1767569736305,7.75116053,134.3,134.19,192.3738]
[1767569736505,1.04636053,134.3,134.2,104.3648]
[1767569736903,1.04636053,134.3,134.21,88.0]
[1767569737710,1.04636053,134.3,134.23,6.7077]
[1767569738007,1.04636053,134.28,134.19,88.0]
[1767569739611,1.04636053,134.28,134.21,6.7086]
[1767569740913,1.04636053,134.28,134.19,94.7095]
[1767569741614,1.04636053,134.27,134.19,88.0]
[1767569741812,1.04636053,134.27,134.17,6.7105]
[1767569742015,1.04636053,134.25,134.15,88.02]
[1767569742216,1.04636053,134.24,134.15,94.7316]
[1767569742812,1.04636053,134.24,134.16,6.7113]
[1767569749519,1.04636053,134.23,134.15,88.02]
[1767569749729,1.04636053,134.23,134.14,6.712]
[1767569750424,1.04636053,134.26,134.14,104.4153]
[1767569750819,5.55948301,134.25,134.14,104.4153]
[1767569751028,1.04636053,134.26,134.14,104.4153]
[1767569751627,7.75336053,134.25,134.17,6.7107]
[1767569751826,1.04636053,134.24,134.13,104.4198]
[1767569752633,7.75396053,134.24,134.15,6.7115]
[1767569753835,1.04636053,134.26,134.14,104.4146]
[1767569754028,6.61009251,134.25,134.14,104.4146]
[1767569754228,1.04636053,134.25,134.14,104.4146]
[1767569755737,1.04636053,134.24,134.13,104.423]
[1767569756534,1.04636053,134.23,134.15,6.7115]
[1767569758638,1.04636053,134.23,134.15,8.24793626]
[1767569760537,1.53643626,134.25,134.17,1.53643626]
[1767569760743,1.00322476,134.25,134.17,1.53643626]
[1767569761245,7.71062476,134.24,134.17,1.53643626]
[1767569761739,7.71142476,134.23,134.15,8.24783626]
[1767569762038,1.00322476,134.23,134.15,1.53643626]
[1767569762247,7.71282476,134.2,134.11,18.82286003]
[1767569762435,1.00322476,134.2,134.13,1.53643626]
[1767569762741,1.00322476,134.22,134.13,1.53643626]
[1767569763643,7.71202476,134.22,134.13,8.24923626]
[1767569763840,7.71202476,134.22,134.15,1.53643626]
[1767569768541,1.00322476,134.21,134.13,1.53643626]
[1767569768746,1.00322476,134.21,134.11,18.82286003]
[1767569768747,1.00322476,134.19,134.11,18.82286003]
[1767569769246,1.00322476,134.19,134.11,25.53666003]
[1767569770540,7.71322476,134.19,134.11,25.53666003]
[1767569772451,1.00322476,134.17,134.09,1.53643626]
[1767569773549,1.00322476,134.17,134.1,6.7143]
[1767569776555,1.00322476,134.17,134.09,1.53643626]
[1767569776556,7.71292476,134.2,134.11,1.53643626]
[1767569777356,7.71292476,134.2,134.13,1.53643626]
[1767569778656,7.71292476,134.2,134.12,6.7133]
[1767569785451,1.00322476,134.19,134.12,6.7133]
[1767569790364,1.0210824,134.17,134.1,6.7139]
[1767569791966,6.7104,134.18,134.06,192.5534]
[1767569791967,1.0210824,134.14,134.06,1.53643626]
[1767569792970,1.0210824,134.14,134.07,6.7158]
[1767569793160,1.0210824,134.14,134.06,1.53643626]
[1767569793466,7.7340824,134.13,134.05,6.7165]
[1767569793768,1.0210824,134.12,134.04,1.53643626]
[1767569794069,1.0210824,134.12,134.03,88.08]
[1767569794367,1.0210824,134.12,134.03,89.61643626]
[1767569795770,7.7345824,134.12,134.04,6.7173]
[1767569801969,1.0210824,134.12,134.04,6.7173]
[1767569804861,1.0210824,134.12,134.04,8.25373626]
[1767569807572,7.7344824,134.12,134.04,8.25373626]
[1767569808871,6.7142,134.11,134.04,1.53643626]
[1767569809179,0.99251256,134.08,134.0,1.53643626]
[1767569810268,7.70731256,134.1,134.02,1.53643626]
[1767569811567,7.70731256,134.1,134.03,6.7178]
[1767569813078,7.70751256,134.09,134.01,94.8387]
[1767569813888,7.70751256,134.09,134.01,6.7187]
[1767569814781,0.99251256,134.09,134.02,8.25473626]
[1767569818485,0.99251256,134.09,134.02,6.7183]
[1767569820184,0.99251256,134.08,134.0,94.8389]
[1767569820390,0.99251256,134.08,134.0,6.7189]
[1767569821790,1.05165728,134.07,134.0,6.7189]
[1767569823188,1.05165728,134.06,133.98,94.86]
[1767569823394,1.05165728,134.06,133.98,88.14]
[1767569824789,1.05165728,134.06,133.99,6.7198]
[1767569825789,1.05165728,134.06,133.98,88.14]
[1767569826586,1.05165728,134.05,133.96,2.40544738]
[1767569826781,1.05165728,134.05,133.92,108.28662445]
[1767569826782,1.05165728,134.04,133.92,108.28662445]
[1767569826987,1.05165728,134.04,133.93,88.14]
[1767569827189,89.19165728,134.04,133.93,88.14]
[1767569827395,1.05165728,134.03,133.93,88.14]
[1767569827584,1.05165728,134.02,133.94,6.7223]
[1767569828687,1.05165728,134.01,133.93,88.14]
[1767569828988,1.05165728,134.01,133.9,2.40544738]
[1767569829193,1.05165728,134.01,133.9,88.16]
[1767569829589,1.05165728,133.99,133.9,88.16]
[1767569830603,1.05165728,133.97,133.9,88.16]
[1767569832702,2.40544738,133.99,133.87,6.7257]
[1767569832703,1.05165728,133.96,133.87,6.7257]
[1767569833195,1.05165728,133.96,133.88,6.7251]
[1767569833390,1.05165728,133.96,133.88,9.13054738]
[1767569833791,1.05165728,133.99,133.88,9.13054738]
[1767569834699,7.77215728,133.98,133.88,9.13054738]
[1767569835598,195.10614738,134.01,133.88,9.13054738]
[1767569835599,1.05165728,134.01,133.9,2.40544738]
[1767569835992,1.05165728,134.01,133.92,2.40544738]
[1767569836194,1.05165728,134.01,133.92,9.12864738]
[1767569837293,6.7185,134.02,133.9,107.00444738]
[1767569837294,1.05165728,134.02,133.9,107.00444738]
[1767569837494,1.05165728,134.02,133.9,195.18444738]
[1767569837896,1.05165728,134.01,133.92,6.7232]
[1767569839300,6.7186,134.02,133.9,195.18444738]
[1767569839301,1.05165728,134.0,133.9,97.30964738]
[1767569839508,1.05165728,134.0,133.9,6.7242]
[1767569840709,7.77175728,133.99,133.9,6.7242]
[1767569840906,1.05165728,134.02,133.9,107.00564738]
[1767569842599,7.77085728,134.01,133.92,6.7231]
[1767569842805,1.05165728,134.0,133.92,6.7231]
[1767569844098,7.76985728,134.03,133.93,6.7227]
[1767569844300,1.05165728,134.03,133.92,106.98944738]
[1767569845109,1.05165728,134.03,133.95,6.7217]
[1767569846609,1.05165728,134.03,133.93,6.7226]
[1767569847206,1.05165728,134.02,133.92,106.98914738]
[1767569847901,1.05165728,134.02,133.95,6.7217]
[1767569848407,95.96885728,134.05,133.96,9.12664738]
[1767569848607,95.96885728,134.05,133.9,127.0102]
[1767569848608,1.05165728,134.03,133.91,104.5943]
[1767569848910,1.05165728,134.03,133.91,106.99974738]
[1767569849111,7.76975728,134.03,133.94,6.7222]
[1767569849504,1.05165728,134.02,133.94,6.7222]
[1767569851015,0.98461155,134.05,133.95,106.96714738]
[1767569852119,0.98461155,134.05,133.95,195.16714738]
[1767569852722,0.98461155,134.05,133.97,6.7207]
[1767569854419,0.98461155,134.07,133.98,6.7203]
[1767569854723,0.98461155,134.07,133.95,195.16714738]
[1767569854724,0.98461155,134.05,133.95,2.40544738]
[1767569855026,0.98461155,134.05,133.94,104.5701]
[1767569855626,7.70161155,134.05,133.96,6.7211]
[1767569856925,7.70161155,134.05,133.97,6.7208]
[1767569860828,0.98461155,134.05,133.98,6.7203]
[1767569865828,0.98461155,134.05,133.99,6.7198]
[1767569866130,7.73945472,134.07,133.99,6.7198]
[1767569866328,5.59298318,134.06,133.97,106.94914738]
[1767569866528,1.02345472,134.07,133.97,106.94914738]
[1767569867333,1.02345472,134.07,134.0,6.7193]
[1767569867533,1.02345472,134.07,133.98,104.5401]
[1767569867734,5.59405922,134.06,133.98,104.5401]
[1767569868028,1.02345472,134.07,133.98,104.5401]
[1767569868233,5.59405922,134.06,133.98,104.5401]
[1767569868437,1.02345472,134.07,134.01,6.7186]
[1767569868635,5.5943907,134.06,134.01,6.7186]
[1767569868822,1.02345472,134.07,134.01,6.7186]
[1767569869027,5.59438757,134.06,134.01,6.7186]
[1767569869227,1.02345472,134.07,133.99,6.7196]
[1767569869442,5.59446074,134.06,133.99,6.7196]
[1767569869638,1.02345472,134.07,133.99,6.7196]
[1767569869833,5.59446074,134.06,133.99,6.7196]
[1767569870037,1.02345472,134.07,133.99,6.7196]
[1767569870243,5.59446074,134.06,133.99,6.7196]
[1767569870441,1.02345472,134.07,133.99,6.7196]
[1767569870632,5.59454771,134.06,133.99,6.7196]
[1767569870931,1.02345472,134.07,133.99,6.7196]
[1767569871131,5.59454771,134.06,133.99,6.7196]
[1767569871332,1.02345472,134.07,133.99,6.7196]
[1767569871626,5.594826,134.06,133.99,6.7196]
[1767569871829,1.02345472,134.07,133.99,6.7196]
[1767569872036,5.5948443,134.06,133.99,6.7196]
[1767569872240,1.02345472,134.07,134.0,6.7193]
[1767569872434,5.58639982,134.06,134.0,6.7193]
[1767569872638,1.02345472,134.07,134.0,6.7193]
[1767569872846,5.58639982,134.06,134.0,6.7193]
[1767569873038,1.02345472,134.07,134.0,6.7193]
[1767569873343,1.02345472,134.06,133.97,106.94914738]
[1767569874238,1.02345472,134.05,133.95,106.96594738]
[1767569874539,1.02345472,134.05,133.95,195.14594738]
[1767569875143,7.74045472,134.05,133.98,6.7203]
[1767569877136,94.8963,134.07,133.99,6.7198]
[1767569877341,6.7163,134.07,133.97,106.95204738]
[1767569877742,1.02345472,134.08,133.97,106.95204738]
[1767569878243,5.59024048,134.07,133.97,106.95204738]
[1767569878443,1.02345472,134.08,133.97,106.95204738]
[1767569878739,5.59024055,134.07,134.0,6.7193]
[1767569878943,1.02345472,134.08,134.0,6.7193]
[1767569879143,5.59024055,134.07,134.0,6.7193]
[1767569879345,1.02345472,134.08,134.0,6.7193]
[1767569879545,5.59150286,134.07,134.0,6.7193]
[1767569879843,1.02345472,134.08,134.0,6.7193]
[1767569880046,5.59155768,134.07,134.0,6.7193]
[1767569880245,1.02345472,134.08,134.0,6.7193]
[1767569880436,5.59302447,134.07,134.0,6.7193]
[1767569880744,1.02345472,134.08,134.0,8.25916694]
[1767569880944,5.59302646,134.07,134.0,8.25916694]
[1767569881245,1.02345472,134.08,134.0,8.25916694]
[1767569881441,5.5928595,134.07,134.0,8.25916694]
[1767569881641,1.02345472,134.08,134.0,8.25916694]
[1767569881941,5.59287423,134.07,134.0,8.25916694]
[1767569882143,1.02345472,134.08,134.0,8.25916694]
[1767569882338,5.59244777,134.07,134.0,8.25916694]
[1767569882639,1.02345472,134.08,134.0,8.25916694]
[1767569882841,5.5928504,134.07,134.0,8.25916694]
[1767569883040,1.02345472,134.08,134.0,8.25916694]
[1767569883237,89.18280877,134.11,134.0,1.53986694]
[1767569883446,6.59632699,134.1,134.02,1.53986694]
[1767569883640,5.59351822,134.09,134.02,1.53986694]
[1767569883843,1.00280877,134.1,134.03,6.7178]
[1767569884042,5.5931931,134.09,134.03,6.7178]
[1767569884242,1.00280877,134.1,134.03,6.7178]
[1767569884442,5.59257933,134.09,134.03,6.7178]
[1767569884646,88.18,134.11,134.04,6.7172]
[1767569884948,104.4047,134.16,134.06,1.53986694]
[1767569884949,88.16,134.16,134.06,1.53986694]
[1767569885150,1.00280877,134.14,134.06,1.53986694]
[1767569885446,5.59109829,134.13,134.06,1.53986694]
[1767569885649,1.00280877,134.14,134.06,1.53986694]
[1767569885846,5.58904102,134.13,134.06,1.53986694]
[1767569886148,1.00280877,134.14,134.06,1.53986694]
[1767569886351,5.58674395,134.13,134.06,1.53986694]
[1767569886647,1.00280877,134.14,134.06,8.25616694]
[1767569886847,5.5867413,134.13,134.06,8.25616694]
[1767569887048,1.00280877,134.14,134.06,8.25616694]
[1767569887347,5.58470797,134.13,134.06,8.25616694]
[1767569887547,1.00280877,134.14,134.06,8.25616694]
[1767569887748,6.58751674,134.13,134.04,6.717]
[1767569887949,1.00280877,134.13,134.04,1.53986694]
[1767569888747,1.00280877,134.13,134.06,8.25606694]
[1767569889347,88.16,134.15,134.08,1.53986694]
[1767569889549,1.00280877,134.17,134.08,1.53986694]
[1767569890652,1.00280877,134.17,134.09,6.7146]
[1767569893547,1.00280877,134.16,134.09,6.7146]
[1767569899049,1.00280877,134.14,134.06,1.53986694]
[1767569900054,1.00280877,134.14,134.07,6.7157]
[1767569900354,90.66267571,134.17,134.08,1.53986694]
[1767569900749,1.00280877,134.16,134.07,1.53986694]
[1767569901656,6.712,134.15,134.07,8.25546694]
[1767569902649,6.712,134.15,134.08,6.7153]
[1767569903257,1.00280877,134.16,134.08,6.7153]
[1767569903759,1.00280877,134.16,134.09,6.7147]
[1767569906365,89.65986694,134.17,134.09,1.53986694]
[1767569906559,88.12,134.17,134.09,1.53986694]
[1767569906961,89.12280877,134.17,134.09,1.53986694]
[1767569907561,89.12280877,134.17,134.11,6.7138]
[1767569910957,1.00280877,134.17,134.11,6.7138]
[1767569916167,1.00280877,134.17,134.09,1.53986694]
[1767569916168,0.99988676,134.13,134.07,6.7154]
[1767569916464,2.5397537,134.1,134.02,104.505]
[1767569916866,2.5397537,134.1,134.03,6.7176]
[1767569919869,0.99988676,134.09,134.01,6.7185]
[1767569920076,2.5397537,134.08,134.0,88.1]
[1767569920463,0.99988676,134.1,134.0,194.16066694]
[1767569920877,0.99988676,134.1,134.01,1.53986694]
[1767569921081,0.99988676,134.1,134.02,6.7182]
[1767569922482,0.99988676,134.1,134.01,1.53986694]
[1767569922483,1.53986694,134.11,134.04,6.7172]
[1767569925777,0.05172016,134.09,134.06,0.05219436]
[1767569931090,6.713,134.13,134.06,0.05219436]
[1767569931091,0.99988676,134.14,134.06,1.55219436]
[1767569931384,0.99988676,134.14,134.06,0.05219436]
[1767569931582,0.99988676,134.16,134.07,1.53986694]
[1767569931790,5.58499467,134.15,134.07,1.53986694]
[1767569931980,0.99988676,134.16,134.07,89.65986694]
[1767569932382,5.61190501,134.15,134.1,0.04884687]
[1767569932583,0.99988676,134.16,134.1,0.04884687]
[1767569935089,0.99988676,134.16,134.1,6.76314687]
[1767569936685,0.99988676,134.16,134.1,0.04884687]
[1767569936897,6.61147727,134.15,134.1,0.04884687]
[1767569937087,0.99988676,134.15,134.1,0.04884687]
[1767569954714,0.99988676,134.15,134.08,6.7153]
[1767569955404,1.00507896,134.13,134.08,6.7153]
[1767569963517,1.00507896,134.13,134.06,6.716]
[1767569964316,1.00507896,134.13,134.07,6.7158]
[1767569964710,1.00507896,134.15,134.06,104.4756]
[1767569965102,5.62119881,134.14,134.06,104.4756]
[1767569965415,1.00507896,134.15,134.06,104.4756]
[1767569965612,5.62119881,134.14,134.07,104.4674]
[1767569965818,1.00507896,134.15,134.07,106.8709056]
[1767569966614,1.00507896,134.15,134.1,6.7141]
[1767569971009,0.95457355,134.19,134.09,104.4495]
[1767569971210,6.57997462,134.18,134.1,88.1]
[1767569971414,5.62540107,134.17,134.09,194.9530056]
[1767569971619,0.95457355,134.18,134.09,194.9530056]
[1767569971819,5.62511724,134.17,134.09,194.9530056]
[1767569972021,0.95457355,134.18,134.09,194.9530056]
[1767569972223,5.62517848,134.17,134.09,194.9530056]
[1767569972416,0.95457355,134.2,134.13,6.7127]
[1767569972619,6.5799996,134.19,134.13,6.7127]
[1767569972909,5.62542605,134.18,134.13,6.7127]
[1767569973119,5.62542605,134.17,134.09,194.9530056]
[1767569973424,0.95457355,134.18,134.09,194.9530056]
[1767569973624,5.62567616,134.17,134.09,194.9530056]
[1767569973926,0.95457355,134.18,134.09,194.9530056]
[1767569974127,5.62567616,134.17,134.09,194.9530056]
[1767569974317,0.95457355,134.18,134.09,194.9530056]
[1767569974512,5.62598548,134.17,134.12,6.7133]
[1767569974815,0.95457355,134.18,134.12,6.7133]
[1767569975016,5.62598434,134.17,134.12,6.7133]
[1767569975331,0.95457355,134.18,134.12,6.7133]
[1767569976229,5.62599873,134.17,134.12,6.7133]
[1767569976526,0.95457355,134.18,134.12,6.7133]
[1767569976712,5.62599986,134.17,134.12,6.7133]
[1767569976919,0.95457355,134.18,134.12,6.7133]
[1767569977117,5.62599986,134.17,134.12,6.7133]
[1767569977322,0.95457355,134.18,134.12,6.7133]
[1767569977521,6.7096,134.2,134.09,194.9530056]
[1767569977522,4.084e-05,134.17,134.11,104.4381]
[1767569977721,1.01760673,134.2,134.11,104.4381]
[1767569978519,1.01760673,134.2,134.14,6.7123]
[1767569981329,1.01760673,134.2,134.12,6.7133]
[1767569983532,1.01760673,134.19,134.12,6.7133]
[1767569985334,1.01760673,134.19,134.11,104.4376]
[1767569985834,1.01760673,134.22,134.15,6.7118]
[1767569987834,1.01760673,134.22,134.1,104.443]
[1767569987835,1.01760673,134.2,134.1,104.443]
[1767569989239,7.72710673,134.2,134.13,6.7127]
[1767569989436,1.01760673,134.22,134.12,104.4307]
[1767569989639,5.58664421,134.21,134.12,104.4307]
[1767569989835,1.01760673,134.22,134.12,104.4307]
[1767569990033,5.58663624,134.21,134.12,104.4307]
[1767569990235,1.01760673,134.22,134.12,104.4307]
[1767569990542,7.72630673,134.22,134.15,6.7118]
[1767569992844,7.72630673,134.22,134.11,106.8394056]
[1767569993046,1.01760673,134.21,134.11,106.8394056]
[1767569994655,1.01760673,134.21,134.14,6.7123]
[1767569995456,6.59232568,134.2,134.12,6.7132]
[1767569995748,5.57529515,134.19,134.12,6.7132]
[1767569995955,1.01760673,134.2,134.12,6.7132]
[1767569996145,5.5753031,134.19,134.12,6.7132]
[1767569996348,1.01760673,134.2,134.12,6.7132]
[1767569996549,5.57559728,134.19,134.12,6.7132]
[1767569996756,1.01760673,134.19,134.08,126.8679]
[1767569996957,1.01760673,134.19,134.09,88.08]
[1767569997655,7.72760673,134.19,134.11,6.7138]
[1767569999457,1.01760673,134.17,134.09,88.08]
[1767569999655,1.01760673,134.17,134.09,6.7145]
[1767570000246,7.72860673,134.17,134.1,6.7142]
[1767570000451,1.01760673,134.17,134.1,6.7142]
[1767570001053,89.0735099,134.19,134.09,106.8561056]
[1767570001761,0.9935099,134.18,134.09,2.4035056]
[1767570002362,0.9935099,134.18,134.08,104.459]
[1767570002562,2.53116725,134.18,134.09,1.53765735]
[1767570003660,2.53116725,134.18,134.11,6.7138]
[1767570006257,6.59353907,134.17,134.11,6.7138]
[1767570006457,0.9935099,134.17,134.11,6.7138]
[1767570008556,0.9935099,134.17,134.09,6.7146]
[1767570008866,0.9935099,134.13,134.05,106.02295735]
[1767570009371,0.9935099,134.13,134.08,6.7152]
[1767570009555,0.9935099,134.15,134.07,1.53765735]
[1767570010169,0.9935099,134.15,134.06,104.474]
[1767570010368,0.9935099,134.15,134.08,1.53765735]
[1767570010668,0.9935099,134.15,134.09,6.7148]
[1767570011470,0.9935099,134.15,134.06,1.53765735]
[1767570012771,0.9935099,134.15,134.08,6.7153]
[1767570015164,8.24825735,134.18,134.1,1.53765735]
[1767570015366,8.24825735,134.18,134.09,1.53765735]
[1767570015367,5.60282542,134.17,134.09,1.53765735]
[1767570015668,2.53116725,134.18,134.09,1.53765735]
[1767570015868,5.60262365,134.17,134.09,1.53765735]
[1767570016069,2.53116725,134.18,134.09,1.53765735]
[1767570016264,5.60240078,134.17,134.09,1.53765735]
[1767570016465,0.9935099,134.17,134.09,1.53765735]
[1767570016769,0.9935099,134.17,134.1,6.7143]
[1767570018770,0.9935099,134.17,134.11,6.7138]
[1767570020978,0.9935099,134.17,134.12,6.7132]
[1767570021170,6.7098,134.2,134.1,104.4459]
[1767570021171,0.9935099,134.19,134.1,104.4459]
[1767570021372,5.60169617,134.18,134.1,104.4459]
[1767570021673,0.9935099,134.19,134.1,104.4459]
[1767570021975,5.60169238,134.18,134.1,104.4459]
[1767570022176,0.9935099,134.19,134.1,104.4459]
[1767570022479,5.60167509,134.18,134.1,104.4459]
[1767570022672,0.9935099,134.19,134.13,6.7128]
[1767570022872,5.59990377,134.18,134.13,6.7128]
[1767570023176,0.9935099,134.19,134.13,6.7128]
[1767570023375,5.59996097,134.18,134.13,6.7128]
[1767570023575,0.9935099,134.19,134.13,6.7128]
[1767570023773,5.59996097,134.18,134.13,6.7128]
[1767570023972,0.9935099,134.19,134.13,6.7128]
[1767570024176,5.59996097,134.18,134.13,6.7128]
[1767570024381,0.9935099,134.19,134.13,6.7128]
[1767570024575,5.60002285,134.18,134.13,6.7128]
[1767570024777,0.9935099,134.19,134.13,6.7128]
[1767570024981,5.60002285,134.18,134.13,6.7128]
[1767570025180,0.9935099,134.19,134.13,6.7128]
[1767570025381,5.60017624,134.18,134.13,6.7128]
[1767570025583,0.9935099,134.19,134.13,6.7128]
[1767570025777,5.60017624,134.18,134.13,6.7128]
[1767570025981,0.9935099,134.19,134.13,6.7128]
[1767570026175,5.60017624,134.18,134.13,6.7128]
[1767570026373,0.9935099,134.19,134.13,6.7128]
[1767570026573,5.60034253,134.18,134.13,6.7128]
[1767570026774,0.9935099,134.19,134.13,6.7128]
[1767570026975,5.60034253,134.18,134.13,6.7128]
[1767570027175,0.9935099,134.19,134.13,6.7128]
[1767570027371,5.60025904,134.18,134.11,6.7138]
[1767570027577,7.7035099,134.19,134.11,6.7138]
[1767570027876,5.60052201,134.18,134.11,6.7138]
[1767570028077,7.7035099,134.19,134.11,6.7138]
[1767570028276,0.9935099,134.17,134.11,6.7138]
[1767570028585,5.601137,134.16,134.09,96.35215735]
[1767570028789,0.9935099,134.17,134.09,96.35215735]
[1767570029082,5.60113926,134.16,134.09,96.35215735]
[1767570029288,0.9935099,134.17,134.09,96.35215735]
[1767570029590,0.9935099,134.15,134.09,6.7145]
[1767570030377,0.9935099,134.15,134.07,1.53765735]
[1767570031689,0.9935099,134.15,134.08,6.7153]
[1767570033889,6.7115,134.16,134.08,6.7153]
[1767570034194,0.97940476,134.15,134.07,88.1]
[1767570034393,0.97940476,134.13,134.01,104.5123]
[1767570034695,0.97940476,134.11,134.03,1.53765735]
[1767570034884,0.97940476,134.13,134.05,1.53765735]
[1767570036381,6.58702983,134.12,134.05,1.53765735]
[1767570036585,5.62763286,134.11,134.03,1.53765735]
[1767570037296,5.62763286,134.11,134.05,6.7168]
[1767570040396,0.95939697,134.12,134.05,6.7168]
[1767570040994,0.95939697,134.12,134.06,6.7163]
[1767570041893,0.95939697,134.12,134.07,6.7158]
[1767570042095,0.95939697,134.16,134.07,1.53765735]
[1767570042395,5.62277438,134.15,134.07,1.53765735]
[1767570042587,5.62277438,134.14,134.07,1.53765735]
[1767570042788,0.95939697,134.16,134.07,1.53765735]
[1767570042997,5.62236301,134.15,134.07,1.53765735]
[1767570043187,5.62236301,134.14,134.07,1.53765735]
[1767570043390,0.95939697,134.16,134.08,6.7152]
[1767570043588,5.62251918,134.15,134.08,6.7152]
[1767570043798,5.62251918,134.14,134.08,6.7152]
[1767570044099,0.95939697,134.16,134.09,6.7148]
[1767570044297,5.62259198,134.15,134.09,6.7148]
[1767570044493,0.95939697,134.16,134.09,6.7148]
[1767570044494,5.62259198,134.14,134.09,6.7148]
[1767570044699,0.95939697,134.16,134.09,6.7148]
[1767570044900,5.62272774,134.15,134.09,6.7148]
[1767570045202,5.62272774,134.14,134.09,6.7148]
[1767570045396,0.95939697,134.16,134.09,6.7148]
[1767570045593,5.6228659,134.15,134.09,6.7148]
[1767570045793,5.6228659,134.14,134.09,6.7148]
[1767570045994,0.95939697,134.16,134.09,6.7148]
[1767570046197,5.6228659,134.15,134.09,6.7148]
[1767570046500,5.6228659,134.14,134.09,6.7148]
[1767570046693,0.95939697,134.16,134.09,6.7148]
[1767570046893,5.62329762,134.15,134.09,6.7148]
[1767570047093,0.95939697,134.16,134.09,6.7148]
[1767570047094,5.62329762,134.14,134.09,6.7148]
[1767570047294,0.95939697,134.16,134.09,6.7148]
[1767570047501,5.62361277,134.15,134.09,6.7148]
[1767570047700,5.62361277,134.14,134.09,6.7148]
[1767570047901,0.95939697,134.16,134.09,6.7148]
[1767570048203,6.58300974,134.15,134.09,6.7148]
[1767570048402,5.62361277,134.14,134.09,6.7148]
[1767570048608,6.58300974,134.14,134.09,6.7148]
[1767570048807,0.95939697,134.14,134.09,6.7148]
[1767570049301,0.95939697,134.14,134.07,8.25325735]
[1767570058018,5.62779803,134.13,134.07,8.25325735]
[1767570058215,0.95939697,134.13,134.07,8.25325735]
[1767570059514,0.95939697,134.13,134.05,96.35405735]
[1767570059715,0.95939697,134.11,134.05,94.8164]
[1767570060109,0.95939697,134.11,134.05,6.7164]
[1767570060807,0.95939697,134.11,134.03,1.53765735]
[1767570061013,6.57893805,134.1,134.03,8.25515735]
[1767570061209,0.95037991,134.1,134.03,8.25515735]
[1767570061410,0.95037991,134.1,134.0,126.9296]
[1767570061411,0.95037991,134.09,134.01,1.53765735]
[1767570061609,8.1160918,134.08,133.99,266.17773892]
[1767570061810,2.48803726,134.08,133.99,89.65765735]
[1767570062207,2.48803726,134.08,134.01,6.7188]
[1767570062513,0.95037991,134.08,134.01,6.7188]
[1767570067220,7.66587991,134.08,133.99,94.8395]
[1767570067417,0.95037991,134.07,133.99,94.8395]
[1767570067617,0.95037991,134.07,133.99,88.12]
[1767570068610,0.95037991,134.07,134.0,6.7193]
[1767570068815,0.95037991,134.07,133.99,88.12]
[1767570069714,0.95037991,134.07,133.99,94.8397]
[1767570070619,0.95037991,134.07,134.0,6.7191]